fUST/lending_fUST_20260410
["ID","MTS","AMOUNT","RATE_DAILY","PERIOD"]
[420203992,1775773854642,-500.0,0.00019726,18]
[420203993,1775773854651,-500.0,0.00019726,18]
[420203994,1775773854661,-500.0,0.00019726,18]
[420203995,1775773854671,-500.0,0.00019726,18]
[420203996,1775773854683,-500.0,0.00019726,18]
[420203997,1775773854694,-500.0,0.00019726,18]
[420203998,1775773854703,-500.0,0.00019726,18]
[420203999,1775773854712,-500.0,0.00019726,18]
[420204000,1775773854723,-500.0,0.00019726,18]
[420204001,1775773854736,-690.39,0.00019726,18]
[420204002,1775773854746,-500.0,0.00019726,18]
[420204003,1775773854755,-500.0,0.00019726,18]
[420204004,1775773854765,-500.0,0.00019726,18]
[420204005,1775773854780,-500.0,0.00019726,18]
[420204006,1775773854792,-500.0,0.00019726,18]
[420204007,1775773854802,-500.0,0.00019726,18]
[420204008,1775773854811,-500.0,0.00019726,18]
[420204009,1775773854824,-1303.45,0.00019726,18]
[420204010,1775773854834,-893.34,0.00019726,18]
[420204011,1775773854845,-500.0,0.00019726,18]
[420204012,1775773854855,-500.0,0.00019726,18]
[420204013,1775773854866,-500.0,0.00019726,18]
[420204014,1775773854876,-500.0,0.00019726,18]
[420204015,1775773854888,-1050.99,0.00019726,18]
[420204016,1775773854899,-751.51,0.00019726,18]
[420204017,1775773854911,-500.0,0.00019726,18]
[420204018,1775773854921,-500.0,0.00019726,18]
[420204019,1775773854942,-1213.6,0.00019726,18]
[420204020,1775773854954,-502.55,0.00019726,18]
[420204021,1775773854967,-500.0,0.00019726,18]
[420204022,1775773854981,-500.0,0.00019726,18]
[420204023,1775773855002,-500.0,0.00019726,18]
[420204024,1775773855013,-500.0,0.00019726,18]
[420204025,1775773855031,-1389.4447,0.00019726,18]
[420204026,1775773855050,-1389.4447,0.00019726,18]
[420204027,1775773855136,-1389.4447,0.00019726,18]
[420204028,1775773855148,-551.18,0.00019726,18]
[420204029,1775773855174,-500.0,0.00019726,18]
[420204030,1775773855204,-321.04844803,0.00019726,18]
[420204031,1775773855216,-500.0,0.00019726,18]
[420204032,1775773855232,-390.9462918,0.00019726,18]
[420204033,1775773855258,-500.0,0.00019726,18]
[420204034,1775773855285,-672.06,0.00019726,18]
[420204035,1775773855299,-500.0,0.00019726,18]
[420204036,1775773855316,-500.0,0.00019726,18]
[420204037,1775773855335,-500.0,0.00019726,18]
[420204038,1775773855348,-500.0,0.00019726,18]
[420204039,1775773855367,-500.0,0.00019726,18]
[420204040,1775773855381,-716.56,0.00019726,18]
[420204041,1775773855401,-1443.14,0.00019726,18]
[420204042,1775773855411,-566.18,0.00019726,18]
[420204043,1775773855420,-500.0,0.00019726,18]
[420204044,1775773855429,-500.0,0.00019726,18]
[420204045,1775773855443,-527.01,0.00019726,18]
[420204046,1775773855467,-1428.06,0.00019726,18]
[420204047,1775773855476,-567.49,0.00019726,18]
[420204048,1775773855505,-852.66,0.00019726,18]
[420204049,1775773855536,-500.0,0.00019726,18]
[420204050,1775773855568,-500.0,0.00019726,18]
[420204051,1775773855578,-500.0,0.00019726,18]
[420204052,1775773855614,-500.0,0.00019726,18]
[420204053,1775773855633,-500.0,0.00019726,18]
[420204054,1775773855659,-500.0,0.00019726,18]
[420204055,1775773855669,-2090.1,0.00019726,18]
[420204056,1775773855691,-1278.12,0.00019726,18]
[420204057,1775773855703,-576.24,0.00019726,18]
[420204058,1775773855714,-500.0,0.00019726,18]
[420204059,1775773855756,-500.0,0.00019726,18]
[420204060,1775773855813,-1206.98,0.00019726,18]
[420204061,1775773855849,-671.95,0.00019726,18]
[420204062,1775773855859,-500.0,0.00019726,18]
[420204063,1775773855873,-500.0,0.00019726,18]
[420204064,1775773855898,-651.37,0.00019726,18]
[420204065,1775773855907,-594.26,0.00019726,18]
[420204066,1775773855922,-1068.76,0.00019726,18]
[420204067,1775773855934,-117.20053043,0.00019726,18]
[420204068,1775773891719,151.0,0.0001,10]
[420204069,1775773911638,151.0,9.001e-05,2]
[420204070,1775773928965,300.0,9.001e-05,2]
[420204107,1775775032234,-156.0,0.00013699,2]
[420204109,1775775032282,-1000.0,0.00013699,2]
[420204111,1775775032312,-151.0,0.00014795,2]
[420204113,1775775032340,-300.0,0.00016438,2]
[420204115,1775775032350,-330.0,0.00017964,2]
[420204117,1775775032375,-1000.0,0.00018481,2]
[420204119,1775775032384,-151.0,0.0001849,2]
[420204121,1775775032403,-2150.738,0.00018853,2]
[420204123,1775775032425,-537.6845,0.00018853,2]
[420204125,1775775032435,-557.5788265,0.00018908,2]
[420204127,1775775032453,-578.20924308,0.00018963,2]
[420204129,1775775032470,-300.0,0.00018974,2]
[420204131,1775775032480,-433.47193237,0.00018975,2]
[420204133,1775775032492,-503.26,0.00019,2]
[420204135,1775775032514,-599.60298507,0.00019018,2]
[420204137,1775775032525,-98.21393012,0.00019047,2]
[420204140,1775775032554,-357.31708458,0.00019047,2]
[420204142,1775775032573,-1938.13990079,0.00019072,2]
[420204144,1775775032585,-500.0,0.00019073,2]
[420204146,1775775032611,-500.0,0.00019073,2]
[420204148,1775775032621,-500.0,0.00019073,2]
[420204150,1775775032641,-500.0,0.00019073,2]
[420204152,1775775032653,-500.0,0.00019073,2]
[420204154,1775775032663,-500.0,0.00019073,2]
[420204156,1775775032673,-500.0,0.00019073,2]
[420204158,1775775032691,-500.0,0.00019073,2]
[420204160,1775775032713,-500.0,0.00019073,2]
[420204162,1775775032722,-500.0,0.00019073,2]
[420204164,1775775032753,-419.49216096,0.00019073,2]
[420204166,1775775032765,-80.50783904,0.00019073,2]
[420204168,1775775032776,-500.0,0.00019073,2]
[420204170,1775775032797,-500.0,0.00019073,2]
[420204172,1775775032806,-500.0,0.00019073,2]
[420204174,1775775032819,-500.0,0.00019073,2]
[420204176,1775775032831,-500.0,0.00019073,2]
[420204178,1775775032846,-150.833289,0.00019073,2]
[420204180,1775775032855,-621.78829552,0.00019073,2]
[420204181,1775775032867,-802.0,0.00019076,2]
[420204183,1775775032889,-2188.5,0.00019077,2]
[420204185,1775775032898,-151.0,0.0001908,2]
[420204187,1775775032907,-317.95012332,0.00019128,2]
[420204191,1775775032959,-326.84433914,0.00019128,2]
[420204193,1775775032969,-168.0,0.00019159,2]
[420204195,1775775032990,-5.15566086,0.00019162,2]
[420204197,1775775033012,-145.84433914,0.00019162,2]
[420204199,1775775033022,-162.380719,0.00019162,2]
[420204201,1775775033049,-16.24624865,0.00019162,2]
[420204439,1775775040942,-521.43825135,0.00019162,2]
[420204440,1775775040951,-151.0,0.00019162,2]
[420204441,1775775040965,-26.72640037,0.00019162,2]
[420204442,1775775040985,-124.27359963,0.00019162,2]
[420204443,1775775040994,-151.0,0.00019162,2]
[420204444,1775775041009,-151.0,0.00019162,2]
[420204445,1775775041018,-156.587,0.00019162,2]
[420204446,1775775041028,-500.0,0.0001917,2]
[420204449,1775775041037,-500.0,0.0001917,2]
[420204450,1775775041046,-500.0,0.0001917,2]
[420204451,1775775041061,-500.0,0.0001917,2]
[420204452,1775775041070,-500.0,0.0001917,2]
[420204453,1775775041080,-500.0,0.0001917,2]
[420204454,1775775041089,-500.0,0.0001917,2]
[420204455,1775775041104,-500.0,0.0001917,2]
[420204456,1775775041115,-500.0,0.0001917,2]
[420204457,1775775041125,-500.0,0.0001917,2]
[420204458,1775775041136,-500.0,0.0001917,2]
[420204459,1775775041146,-276.46332745,0.0001917,2]
[420204460,1775775041155,-500.0,0.0001917,2]
[420204461,1775775041165,-500.0,0.0001917,2]
[420204462,1775775041175,-630.50170497,0.0001917,2]
[420204463,1775775041185,-500.0,0.0001917,2]
[420204464,1775775041195,-500.0,0.0001917,2]
[420204465,1775775041204,-500.0,0.0001917,2]
[420204466,1775775041217,-500.0,0.0001917,2]
[420204467,1775775041231,-500.0,0.0001917,2]
[420204468,1775775041241,-500.0,0.0001917,2]
[420204469,1775775041252,-500.0,0.0001917,2]
[420204470,1775775041262,-500.0,0.0001917,2]
[420204471,1775775041274,-81.69586796,0.0001917,2]
[420204472,1775775041291,-418.30413204,0.0001917,2]
[420204473,1775775041301,-500.0,0.0001917,2]
[420204474,1775775041331,-500.0,0.0001917,2]
[420204475,1775775041372,-500.0,0.0001917,2]
[420204476,1775775041490,-500.0,0.0001917,2]
[420204477,1775775041505,-500.0,0.0001917,2]
[420204478,1775775041521,-500.0,0.0001917,2]
[420204479,1775775041536,-500.0,0.0001917,2]
[420204480,1775775041546,-500.0,0.0001917,2]
[420204481,1775775041572,-500.0,0.0001917,2]
[420204482,1775775041597,-500.0,0.0001917,2]
[420204483,1775775041611,-500.0,0.0001917,2]
[420204484,1775775041626,-500.0,0.0001917,2]
[420204485,1775775041651,-500.0,0.0001917,2]
[420204486,1775775041665,-500.0,0.0001917,2]
[420204487,1775775041689,-500.0,0.0001917,2]
[420204488,1775775041699,-40.7676921,0.0001917,2]
[420204505,1775775043269,-209.35478696,0.0001917,2]
[420204506,1775775043279,-500.0,0.00019173,2]
[420204507,1775775043288,-500.0,0.00019176,2]
[420204508,1775775043303,-500.0,0.00019176,2]
[420204509,1775775043313,-500.0,0.00019176,2]
[420204510,1775775043323,-500.0,0.00019177,2]
[420204511,1775775043333,-500.0,0.00019177,2]
[420204512,1775775043346,-500.0,0.00019177,2]
[420204513,1775775043360,-500.0,0.00019177,2]
[420204514,1775775043370,-500.0,0.00019177,2]
[420204515,1775775043379,-500.0,0.00019177,2]
[420204516,1775775043389,-500.0,0.00019177,2]
[420204517,1775775043409,-500.0,0.00019177,2]
[420204518,1775775043432,-569.51354325,0.00019177,2]
[420204519,1775775043441,-587.70033337,0.00019177,2]
[420204520,1775775043451,-500.0,0.00019177,2]
[420204521,1775775043470,-500.0,0.00019177,2]
[420204522,1775775043484,-500.0,0.00019177,2]
[420204523,1775775043494,-500.0,0.00019177,2]
[420204524,1775775043505,-500.0,0.00019177,2]
[420204525,1775775043527,-189.83684573,0.00019177,2]
[420204526,1775775043537,-500.0,0.00019177,2]
[420204527,1775775043548,-500.0,0.00019177,2]
[420204528,1775775043585,-500.0,0.00019177,2]
[420204530,1775775043594,-500.0,0.00019177,2]
[420204531,1775775043629,-863.01301899,0.00019177,2]
[420204534,1775775043661,-500.0,0.00019177,2]
[420204536,1775775043685,-863.01301899,0.00019177,2]
[420204537,1775775043701,-863.01301899,0.00019177,2]
[420204538,1775775043710,-863.01301899,0.00019177,2]
[420204539,1775775043720,-863.01301899,0.00019177,2]
[420204540,1775775043732,-263.9361617,0.00019177,2]
[420204541,1775775043747,-500.0,0.00019177,2]
[420204542,1775775043756,-863.01301899,0.00019177,2]
[420204543,1775775043767,-500.0,0.00019177,2]
[420204544,1775775043782,-863.01301899,0.00019177,2]
[420204545,1775775043806,-863.01301899,0.00019177,2]
[420204546,1775775043815,-863.01301899,0.00019177,2]
[420204547,1775775043825,-863.01301899,0.00019177,2]
[420204548,1775775043842,-894.78327847,0.00019177,2]
[420204549,1775775043852,-894.78327847,0.00019177,2]
[420204550,1775775043863,-894.78327847,0.00019177,2]
[420204551,1775775043886,-894.78327847,0.00019177,2]
[420204552,1775775043897,-894.78327847,0.00019177,2]
[420204553,1775775043923,-894.78327847,0.00019177,2]
[420204554,1775775043933,-500.0,0.00019178,18]
[420204555,1775775043953,-500.0,0.00019178,18]
[420204556,1775775043969,-500.0,0.00019178,18]
[420204557,1775775044000,-1061.9,0.00019178,18]
[420204558,1775775044010,-500.0,0.00019178,18]
[420204559,1775775044034,-500.0,0.00019178,18]
[420204560,1775775044049,-500.0,0.00019178,18]
[420204561,1775775044059,-500.0,0.00019178,18]
[420204562,1775775044068,-500.0,0.00019178,18]
[420204563,1775775044086,-1249.56,0.00019178,18]
[420204564,1775775044097,-500.0,0.00019178,18]
[420204565,1775775044109,-657.57,0.00019178,18]
[420204566,1775775044122,-500.0,0.00019178,18]
[420204567,1775775044133,-587.96,0.00019178,18]
[420204568,1775775044146,-500.0,0.00019178,18]
[420204569,1775775044156,-500.0,0.00019178,18]
[420204570,1775775044170,-500.0,0.00019178,18]
[420204571,1775775044180,-500.0,0.00019178,18]
[420204572,1775775044205,-500.0,0.00019178,18]
[420204573,1775775044216,-500.0,0.00019178,18]
[420204574,1775775044225,-500.0,0.00019178,18]
[420204575,1775775044249,-500.0,0.00019178,18]
[420204576,1775775044260,-569.95,0.00019178,18]
[420204577,1775775044269,-500.0,0.00019178,18]
[420204578,1775775044291,-500.0,0.00019178,18]
[420204579,1775775044302,-500.0,0.00019178,18]
[420204580,1775775044327,-500.0,0.00019178,18]
[420204581,1775775044338,-2880.0277,0.00019178,18]
[420204582,1775775044347,-2880.0277,0.00019178,18]
[420204583,1775775044367,-500.0,0.00019178,18]
[420204584,1775775044389,-346.63231018,0.00019178,18]
[420204585,1775775044408,-153.36768982,0.00019178,18]
[420204586,1775775044419,-576.75,0.00019178,18]
[420204587,1775775044432,-500.0,0.00019178,18]
[420204588,1775775044447,-500.0,0.00019178,18]
[420204589,1775775044457,-500.0,0.00019178,18]
[420204590,1775775044479,-500.0,0.00019178,18]
[420204591,1775775044490,-500.0,0.00019178,18]
[420204592,1775775044513,-500.0,0.00019178,18]
[420204593,1775775044523,-500.0,0.00019178,18]
[420204594,1775775044569,-500.0,0.00019178,18]
[420204595,1775775044592,-250.67609967,0.00019178,18]
[420204603,1775775046164,-300.0,0.00019162,2]
[420204604,1775775046175,-249.32390033,0.00019178,18]
[420204605,1775775046185,-546.89,0.00019178,18]
[420204606,1775775046196,-500.0,0.00019178,18]
[420204607,1775775046214,-500.0,0.00019178,18]
[420204608,1775775046227,-500.0,0.00019178,18]
[420204609,1775775046242,-500.0,0.00019178,18]
[420204610,1775775046274,-500.0,0.00019178,18]
[420204611,1775775046302,-167.677,0.00019178,2]
[420204612,1775775046312,-500.0,0.00019178,18]
[420204613,1775775046324,-500.0,0.00019178,18]
[420204614,1775775046366,-500.0,0.00019178,18]
[420204616,1775775046376,-500.0,0.00019178,18]
[420204617,1775775046392,-500.0,0.00019178,18]
[420204618,1775775046441,-1056.11,0.00019178,18]
[420204619,1775775046451,-630.59,0.00019178,18]
[420204620,1775775046475,-500.0,0.00019178,18]
[420204621,1775775046489,-626.99,0.00019178,18]
[420204622,1775775046501,-500.0,0.00019178,18]
[420204623,1775775046529,-1828.84,0.00019178,18]
[420204624,1775775046581,-746.08,0.00019178,18]
[420204625,1775775046619,-500.0,0.00019178,18]
[420204626,1775775046632,-500.0,0.00019178,18]
[420204627,1775775046642,-591.14,0.00019178,18]
[420204628,1775775046651,-500.0,0.00019178,18]
[420204629,1775775046661,-500.0,0.00019178,18]
[420204630,1775775046672,-500.0,0.00019178,18]
[420204631,1775775046681,-500.0,0.00019178,18]
[420204632,1775775046695,-615.44,0.00019178,18]
[420204633,1775775046704,-500.0,0.00019178,18]
[420204634,1775775046714,-500.0,0.00019178,18]
[420204635,1775775046730,-935.16,0.00019178,18]
[420204636,1775775046742,-500.0,0.00019178,18]
[420204637,1775775046755,-1118.36,0.00019178,18]
[420204638,1775775046767,-1272.42,0.00019178,18]
[420204639,1775775046778,-448.32731094,0.00019178,18]
[420204640,1775775046791,-51.67268906,0.00019178,18]
[420204641,1775775046810,-500.0,0.00019178,18]
[420204642,1775775046836,-504.21,0.00019178,18]
[420204643,1775775046849,-86.47902934,0.00019178,18]
[420204644,1775775046882,-413.52097066,0.00019178,18]
[420204645,1775775046896,-500.0,0.00019178,18]
[420204646,1775775046923,-530.72462401,0.00019178,18]
[420204647,1775775046954,-949.77920166,0.00019178,18]
[420204651,1775775643380,-1610.85201418,0.0001,2]
[420204652,1775775710031,7062.29212004,7.6e-05,2]
[420204695,1775776232123,-340.36151739,0.0001,2]
[420204697,1775776232134,-112.32886169,0.0001,2]
[420204699,1775776232147,-324.39780914,0.0001,2]
[420204703,1775776232187,-82.29051793,0.0001,2]
[420204705,1775776232201,-277.34099666,0.0001,2]
[420204706,1775776232214,-418.85150422,0.00013699,2]
[420204708,1775776232225,-305.09082963,0.00013699,2]
[420204710,1775776232246,-276.05766615,0.00013699,2]
[420204712,1775776232255,-300.0,0.00016438,2]
[420204714,1775776232265,-1944.3312158,0.00017846,2]
[420204716,1775776232276,-330.0,0.00017964,2]
[420204718,1775776232286,-151.0,0.00018155,2]
[420204720,1775776232295,-168.0,0.00018299,2]
[420204722,1775776232304,-300.0,0.00018608,2]
[420204724,1775776232313,-706.94162286,0.00018609,2]
[420204726,1775776232325,-1443.79637714,0.00018609,2]
[420204727,1775776232334,-537.6845,0.00018609,2]
[420204729,1775776232343,-644.0,0.00018621,2]
[420204731,1775776232353,-2206.0,0.00018621,2]
[420204732,1775776232362,-633.11260276,0.00018621,2]
[420204734,1775776232373,-773.88739724,0.00018621,2]
[420204735,1775776232383,-170.21104167,0.00018621,2]
[420204798,1775776238534,-567.78895833,0.00018621,2]
[420204799,1775776238552,-20.3203145,0.00018621,2]
[420204800,1775776238563,-163.6796855,0.00018621,2]
[420204801,1775776238582,-441.0,0.00018621,2]
[420204802,1775776238597,-557.5788265,0.00018664,2]
[420204803,1775776238606,-578.20924308,0.00018719,2]
[420204804,1775776238623,-168.0,0.0001872,2]
[420204806,1775776238632,-599.60298507,0.00018774,2]
[420204807,1775776238641,-340.45927353,0.00018829,2]
[420204808,1775776238650,-2916.5991122,0.00019,2]
[420204809,1775776238665,-452.94,0.00019,2]
[420204810,1775776238675,-5888.0,0.00019048,5]
[420204811,1775776238696,-190.37568636,0.00019157,2]
[420204812,1775776238706,-171.497041,0.00019166,2]
[420204813,1775776238720,-168.38880564,0.00019166,2]
[420204814,1775776238730,-537.6845,0.00019166,2]
[420204815,1775776238745,-270.69099778,0.00019175,2]
[420204816,1775776238755,-500.0,0.00019175,2]
[420204817,1775776238766,-500.0,0.00019175,2]
[420204818,1775776238777,-500.0,0.00019176,2]
[420204819,1775776238793,-500.0,0.00019177,2]
[420204820,1775776238802,-500.0,0.00019177,2]
[420204821,1775776238848,-239.46751149,0.00019177,2]
[420204822,1775776238868,-500.0,0.00019178,18]
[420204823,1775776238881,-8545.964756,0.00019178,2]
[420204824,1775776238897,-500.0,0.00019178,18]
[420204825,1775776238922,-500.0,0.00019178,18]
[420204826,1775776238949,-500.0,0.00019178,18]
[420204827,1775776238970,-500.0,0.00019178,18]
[420204828,1775776238980,-15465.78593496,0.00019178,2]
[420204829,1775776239267,-14450.807048,0.00019178,2]
[420204830,1775776239285,-687.89967662,0.00019178,2]
[420204843,1775776241053,-812.04690215,0.00019178,2]
[420204844,1775776241098,-248.98531437,0.00019178,2]
[420204845,1775776241122,-500.0,0.00019178,18]
[420204846,1775776241131,-500.0,0.00019178,18]
[420204847,1775776241156,-345.85555859,0.00019178,18]
[420204977,1775776243437,-407.64,0.00019,2]
[420204979,1775776243447,-30.30669,0.00019178,18]
[420204981,1775776243458,-123.83775141,0.00019178,18]
[420204983,1775776243471,-500.0,0.00019178,18]
[420204985,1775776243481,-589.8,0.00019178,18]
[420204987,1775776243491,-83.57555859,0.00019178,18]
[420204989,1775776243510,-1045.05139683,0.00019178,18]
[420205313,1775776248833,-90.78304458,0.00019178,18]
[420205315,1775776248842,-500.0,0.00019178,18]
[420205316,1775776248852,-500.0,0.00019178,18]
[420205318,1775776248861,-500.0,0.00019178,18]
[420205320,1775776248870,-174.62282437,0.00019178,18]
[420205329,1775776248954,-325.37717563,0.00019178,18]
[420205331,1775776248979,-500.0,0.00019178,18]
[420205333,1775776248988,-500.0,0.00019178,18]
[420205335,1775776249017,-500.0,0.00019178,18]
[420205337,1775776249038,-500.0,0.00019178,18]
[420205339,1775776249047,-524.1,0.00019178,18]
[420205341,1775776249055,-500.0,0.00019178,18]
[420205342,1775776249069,-482.00895408,0.00019178,18]
[420205349,1775776249131,-17.99104592,0.00019178,18]
[420205351,1775776249141,-500.0,0.00019178,18]
[420205353,1775776249169,-1752.64,0.00019178,18]
[420205354,1775776249186,-500.0,0.00019178,18]
[420205357,1775776249199,-500.0,0.00019178,18]
[420205358,1775776249216,-510.3,0.00019178,18]
[420205360,1775776249229,-500.0,0.00019178,18]
[420205362,1775776249247,-500.0,0.00019178,18]
[420205365,1775776249264,-500.0,0.00019178,18]
[420205366,1775776249286,-500.0,0.00019178,18]
[420205368,1775776249308,-604.32,0.00019178,18]
[420205371,1775776249346,-896.2,0.00019178,18]
[420205372,1775776249373,-91.97587858,0.00019178,18]
[420206583,1775777243194,-260.89,0.000104,2]
[420206584,1775777243223,-999.11,0.00013699,2]
[420206586,1775777402297,178.54,9e-05,2]
[420206626,1775777441510,-178.54,9.9e-05,2]
[420206628,1775777441522,-0.89,0.00013699,2]
[420206630,1775777441535,-177.0,0.000138,2]
[420206632,1775777441563,-1.575,0.000158,2]
[420206634,1775777441583,-202.425,0.000158,2]
[420206636,1775777441600,-155.66571618,0.000178,2]
[420206638,1775777441645,-641.90928382,0.00018,2]
[420206641,1775777441666,-107.59071618,0.00018,2]
[420206642,1775777441680,-300.0,0.00018,2]
[420206645,1775777441713,-1000.0,0.00018192,2]
[420206647,1775777441729,-168.0,0.00018348,2]
[420206649,1775777441744,-168.0,0.00018795,2]
[420206651,1775777441758,-1409.46863593,0.00018854,2]
[420206653,1775777441771,-1099.35248769,0.00018854,2]
[420206655,1775777441781,-168.0,0.00018937,2]
[420206657,1775777441791,-153.0107098,0.00018962,2]
[420206658,1775777441806,-300.0,0.00018992,2]
[420206660,1775777441816,-300.0,0.00018992,2]
[420206663,1775777441832,-168.0,0.00018993,2]
[420206664,1775777441845,-168.0,0.00019061,2]
[420206666,1775777441863,-2154.19423968,0.00019076,2]
[420206667,1775777441876,-168.0,0.00019139,2]
[420206669,1775777441885,-228.72315425,0.00019165,2]
[420206670,1775777441942,-1448.88,0.00019168,3]
[420206671,1775777441962,-724.44,0.00019168,3]
[420206672,1775777441974,-362.22,0.00019168,3]
[420206673,1775777441991,-181.11,0.00019168,3]
[420206674,1775777442011,-543.33,0.00019168,3]
[420206675,1775777442021,-500.0,0.00019176,2]
[420206676,1775777442038,-500.0,0.00019176,2]
[420206677,1775777442048,-500.0,0.00019176,2]
[420206678,1775777442058,-500.0,0.00019176,2]
[420206679,1775777442077,-500.0,0.00019176,2]
[420206680,1775777442088,-239.05581201,0.00019176,2]
[420206681,1775777442288,-260.94418799,0.00019176,2]
[420206682,1775777442298,-401.13010622,0.00019176,2]
[420206684,1775777442317,-500.0,0.00019176,2]
[420206685,1775777442326,-500.0,0.00019176,2]
[420206687,1775777442335,-500.0,0.00019176,2]
[420206689,1775777442349,-500.0,0.00019176,2]
[420206691,1775777442358,-500.0,0.00019176,2]
[420206693,1775777442367,-500.0,0.00019176,2]
[420206695,1775777442376,-337.92570579,0.00019176,2]
[420206697,1775777442390,-162.07429421,0.00019176,2]
[420206699,1775777442398,-500.0,0.00019176,2]
[420206701,1775777442408,-500.0,0.00019176,2]
[420206703,1775777442417,-115.03830855,0.00019176,2]
[420206717,1775777442632,-384.96169145,0.00019176,2]
[420206720,1775777442680,-500.0,0.00019176,2]
[420206721,1775777442690,-500.0,0.00019176,2]
[420206723,1775777442726,-161.03830855,0.00019176,2]
[420206804,1775777443850,-338.96169145,0.00019176,2]
[420206806,1775777443862,-500.0,0.00019176,2]
[420206808,1775777443872,-500.0,0.00019176,2]
[420206810,1775777443882,-142.03830855,0.00019176,2]
[420206962,1775777446683,-357.96169145,0.00019176,2]
[420206964,1775777446693,-500.0,0.00019176,2]
[420206966,1775777446717,-500.0,0.00019176,2]
[420206967,1775777446749,-500.0,0.00019176,2]
[420206969,1775777446857,-500.0,0.00019176,2]
[420206972,1775777446867,-500.0,0.00019176,2]
[420206975,1775777446886,-265.4441775,0.00019176,2]
[420206978,1775777446898,-234.5558225,0.00019176,2]
[420206981,1775777446911,-500.0,0.00019176,2]
[420206985,1775777446930,-500.0,0.00019176,2]
[420206987,1775777446939,-310.89778874,0.00019176,2]
[420207024,1775777785931,184.58,0.0001,10]
[420207040,1775778632662,-1000.0,0.00013699,2]
[420207042,1775778632680,-626.8002071,0.00014175,2]
[420207044,1775778632692,-614.67344376,0.00014175,2]
[420207046,1775778632703,-1595.85165468,0.00016254,2]
[420207049,1775778632722,-441.07748157,0.00016254,2]
[420207052,1775778632735,-300.0,0.00016438,2]
[420207054,1775778632746,-300.0,0.00017306,2]
[420207056,1775778632759,-776.0,0.00017306,2]
[420207057,1775778632781,-632.5092139,0.00017307,2]
[420207059,1775778632792,-2527.50681874,0.00017307,2]
[420207060,1775778632821,-463.18392399,0.00017307,2]
[420207061,1775778632854,-921.4312226,0.00017307,2]
[420207062,1775778632916,-700.499995,0.00017307,2]
[420207063,1775778632930,-228.95174265,0.00017307,2]
[420207064,1775778632962,-129.64825735,0.00017735,2]
[420207080,1775778638793,-672.35174265,0.00017735,2]
[420207081,1775778638802,-802.0,0.00017737,2]
[420207082,1775778638812,-562.0,0.0001781,2]
[420207083,1775778638822,-562.0,0.00017847,2]
[420207084,1775778638841,-802.0,0.00017854,2]
[420207085,1775778638850,-802.0,0.00017866,2]
[420207086,1775778638860,-797.64825735,0.00017895,2]
[420207087,1775778638883,-4.35174265,0.00017895,2]
[420207088,1775778638893,-330.0,0.00017964,2]
[420207089,1775778638915,-802.0,0.00017993,2]
[420207097,1775778639249,-373.23480855,0.0001801,2]
[420207098,1775778639291,-428.76519145,0.0001801,2]
[420207099,1775778639307,-802.0,0.0001802,2]
[420207100,1775778639321,-802.0,0.00018131,2]
[420207101,1775778639341,-168.0,0.00018201,2]
[420207102,1775778639585,-602.05688217,0.00018207,2]